fUST/lending_fUST_20250912
["ID","MTS","AMOUNT","RATE_DAILY","PERIOD"]
[385089059,1757661242383,-334.87301986,0.00013709,2]
[385089060,1757661242452,-480.0,0.00013709,2]
[385089061,1757661242519,-480.0,0.00013709,2]
[385089062,1757661242602,-480.0,0.00013709,2]
[385089063,1757661242840,-480.0,0.00013709,2]
[385089064,1757661243166,-487.57658633,0.00013709,2]
[385089065,1757661243245,-480.0,0.00013709,2]
[385089066,1757661243319,-480.0,0.00013709,2]
[385089067,1757661243393,-480.0,0.00013709,2]
[385089068,1757661243464,-544.17835925,0.00013709,2]
[385089069,1757661243538,-480.0,0.00013709,2]
[385089070,1757661243611,-495.46673766,0.00013709,2]
[385089071,1757661243686,-492.20820192,0.00013709,2]
[385089072,1757661243756,-157.32999767,0.00013709,2]
[385089073,1757661243826,-480.0,0.00013709,2]
[385089074,1757661243906,-366.49023434,0.00013709,2]
[385089075,1757661244269,-113.50976566,0.00013709,2]
[385089076,1757661244346,-480.0,0.00013709,2]
[385089077,1757661244422,-480.0,0.00013709,2]
[385089078,1757661253230,500.0,0.00013613,2]
[385089079,1757661253299,500.0,0.00013613,2]
[385089080,1757661253373,500.0,0.00013613,2]
[385089081,1757661253449,181.85800401,0.00013613,2]
[385089082,1757661253517,500.0,0.00013613,2]
[385089083,1757661253584,500.0,0.00013613,2]
[385089084,1757661253647,500.0,0.00013613,2]
[385089085,1757661253717,500.0,0.00013613,2]
[385089086,1757661253782,500.0,0.00013613,2]
[385089087,1757661253846,641.28707066,0.00013613,2]
[385089088,1757661254861,1408.91609335,0.00013573,2]
[385089089,1757661256750,480.0,0.00013707,2]
[385089090,1757661260525,-480.0,0.0001371,2]
[385089091,1757661260591,-480.0,0.0001371,2]
[385089092,1757661260658,-480.0,0.0001371,2]
[385089093,1757661260720,-480.0,0.0001371,2]
[385089094,1757661260783,-480.0,0.0001371,2]
[385089095,1757661260843,-480.0,0.0001371,2]
[385089096,1757661260902,-480.0,0.0001371,2]
[385089097,1757661260968,-480.0,0.0001371,2]
[385089098,1757661261030,-480.0,0.0001371,2]
[385089099,1757661261103,-480.0,0.0001371,2]
[385089100,1757661261408,-480.0,0.0001371,2]
[385089101,1757661261468,-480.0,0.0001371,2]
[385089102,1757661261529,-480.0,0.0001371,2]
[385089103,1757661261594,-480.0,0.0001371,2]
[385089104,1757661261654,-480.0,0.0001371,2]
[385089105,1757661262266,480.0,0.00013698,2]
[385089106,1757661262974,480.0,0.00013709,2]
[385089107,1757661268260,-500.0,0.00013711,2]
[385089108,1757661268341,-480.0,0.00013711,2]
[385089109,1757661268419,-488.80296565,0.00013711,2]
[385089110,1757661268485,-480.0,0.00013711,2]
[385089111,1757661268549,-480.0,0.00013711,2]
[385089112,1757661268614,-480.0,0.00013711,2]
[385089113,1757661268676,-480.0,0.00013711,2]
[385089114,1757661268743,-480.0,0.00013711,2]
[385089115,1757661268810,-480.0,0.00013711,2]
[385089116,1757661268877,-480.0,0.00013711,2]
[385089117,1757661269143,-480.0,0.00013711,2]
[385089118,1757661269214,-480.0,0.00013711,2]
[385089119,1757661269284,-480.0,0.00013711,2]
[385089120,1757661269353,-480.0,0.00013711,2]
[385089121,1757661269421,-480.0,0.00013711,2]
[385089122,1757661269487,-480.0,0.00013711,2]
[385089123,1757661269556,-480.0,0.00013711,2]
[385089124,1757661269625,-480.0,0.00013711,2]
[385089125,1757661269691,-248.63992709,0.00013711,2]
[385089126,1757661269760,-480.0,0.00013711,2]
[385089127,1757661269829,-393.80868904,0.00013711,2]
[385089128,1757661272042,8004.39749553,0.00013574,2]
[385089129,1757661278209,-480.0,0.00013709,2]
[385089130,1757661278273,-480.0,0.0001371,2]
[385089131,1757661278337,-480.0,0.0001371,2]
[385089132,1757661278403,-480.0,0.0001371,2]
[385089133,1757661278462,-493.81882238,0.00013711,2]
[385089134,1757661278522,-537.13638644,0.00013711,2]
[385089135,1757661278582,-480.0,0.00013711,2]
[385089136,1757661278644,-480.0,0.00013711,2]
[385089137,1757661278706,-480.0,0.00013711,2]
[385089138,1757661278764,-480.0,0.00013711,2]
[385089154,1757661296364,300.0,0.00013478,2]
[385089155,1757661302751,300.0,0.00013613,2]
[385089156,1757661352147,691.92,0.00012329,2]
[385089157,1757661393268,224.20500815,0.00013613,2]
[385089158,1757661393345,240.65777927,0.00013613,2]
[385089159,1757661394512,406.2923678,0.00013613,2]
[385089160,1757661394587,429.03189674,0.00013613,2]
[385089161,1757661409909,156.9435057,0.00013613,2]
[385089162,1757661421160,7250.95944234,0.00013514,2]
[385089163,1757661421218,10000.01,0.00013514,2]
[385089164,1757661421275,690.27969604,0.00013514,2]
[385089165,1757661431810,203.0,0.00013613,2]
[385089167,1757661529408,870.54426858,0.00013607,2]
[385089168,1757661542567,1000.0,0.00027,120]
[385089169,1757661652690,8236.18603538,0.0001271,2]
[385089170,1757661652751,1763.81396462,0.0001271,2]
[385089173,1757661784164,915.908161,0.00013611,2]
[385089177,1757661870121,696.43541484,0.00013598,2]
[385089211,1757662054421,610.60544066,0.00013611,2]
[385089217,1757662091877,1030.41523046,0.000135,2]
[385089229,1757662120315,1000.0,0.00012709,2]
[385089230,1757662122130,3982.83178842,0.0001,2]
[385089231,1757662122195,4214.16406434,0.0001,2]
[385089232,1757662123527,5785.84593566,0.0001,2]
[385089233,1757662123597,10000.01,0.0001,2]
[385089234,1757662123671,10000.01,0.0001,2]
[385089235,1757662123743,5755.69213278,0.0001,2]
[385089241,1757662136626,216.40078048,0.00013206,2]
[385089242,1757662141020,205.44422579,0.00013613,2]
[385089243,1757662141156,387.8132186,0.00013613,2]
[385089245,1757662143022,300.0,0.00013613,2]
[385089250,1757662152831,468.95278124,0.00013478,2]
[385089260,1757662202874,300.0,0.00013613,2]
[385089261,1757662203454,1200.0,0.00013613,2]
[385089263,1757662210441,557.14833188,0.00013598,2]
[385089377,1757662235434,389.03802,0.00027,120]
[385089400,1757662237956,-961.7599996,0.00013614,2]
[385089410,1757662238072,-162453.71939913,0.00013614,2]
[385089412,1757662238082,-480.0,0.00013698,2]
[385089414,1757662238092,-480.0,0.00013698,2]
[385089416,1757662238101,-479.37184423,0.00013698,2]
[385089418,1757662238111,-480.0,0.00013698,2]
[385089421,1757662238120,-480.0,0.00013698,2]
[385089423,1757662238129,-483.11372983,0.00013698,2]
[385089425,1757662238139,-480.0,0.00013698,2]
[385089427,1757662238148,-480.0,0.00013698,2]
[385089428,1757662238158,-480.0,0.00013698,2]
[385089430,1757662238167,-482.54017041,0.00013698,2]
[385089432,1757662238177,-480.0,0.00013698,2]
[385089434,1757662238186,-480.0,0.00013698,2]
[385089435,1757662238196,-480.0,0.00013698,2]
[385089437,1757662238205,-487.38707966,0.00013698,2]
[385089439,1757662238215,-485.39048223,0.00013698,2]
[385089441,1757662238224,-480.0,0.00013698,2]
[385089443,1757662238234,-480.0,0.00013698,2]
[385089444,1757662238243,-485.94190419,0.00013698,2]
[385089446,1757662238254,-480.0,0.00013698,2]
[385089448,1757662238263,-504.81780725,0.00013698,2]
[385089450,1757662238273,-480.0,0.00013698,2]
[385089452,1757662238282,-480.0,0.00013698,2]
[385089453,1757662238292,-480.0,0.00013698,2]
[385089455,1757662238302,-482.56057162,0.00013698,2]
[385089457,1757662238312,-496.76054226,0.00013698,2]
[385089459,1757662238322,-480.0,0.00013698,2]
[385089461,1757662238332,-480.0,0.00013698,2]
[385089463,1757662238341,-480.0,0.00013698,2]
[385089465,1757662238351,-480.0,0.00013698,2]
[385089467,1757662238360,-480.0,0.00013698,2]
[385089469,1757662238369,-480.0,0.00013698,2]
[385089471,1757662238379,-480.0,0.00013698,2]
[385089473,1757662238388,-497.46500625,0.00013698,2]
[385089475,1757662238398,-480.0,0.00013698,2]
[385089477,1757662238407,-480.0,0.00013698,2]
[385089479,1757662238416,-480.0,0.00013698,2]
[385089481,1757662238425,-480.0,0.00013698,2]
[385089483,1757662238435,-480.0,0.00013698,2]
[385089485,1757662238444,-480.0,0.00013698,2]
[385089487,1757662238454,-480.0,0.00013698,2]
[385089489,1757662238464,-480.96651336,0.00013698,2]
[385089491,1757662238474,-480.0,0.00013698,2]
[385089493,1757662238483,-485.57346109,0.00013698,2]
[385089495,1757662238494,-480.0,0.00013698,2]
[385089497,1757662238504,-480.0,0.00013698,2]
[385089499,1757662238513,-480.0,0.00013698,2]
[385089501,1757662238523,-480.0,0.00013698,2]
[385089503,1757662238532,-480.0,0.00013698,2]
[385089505,1757662238541,-480.0,0.00013698,2]
[385089507,1757662238550,-480.0,0.00013698,2]
[385089509,1757662238560,-480.0,0.00013698,2]
[385089511,1757662238571,-480.0,0.00013698,2]
[385089513,1757662238581,-480.0,0.00013698,2]
[385089515,1757662238590,-502.84866395,0.00013698,2]
[385089517,1757662238599,-480.0,0.00013698,2]
[385089518,1757662238608,-480.0,0.00013698,2]
[385089519,1757662238617,-500.0,0.00013698,2]
[385089520,1757662238626,-500.0,0.00013698,2]
[385089521,1757662238635,-500.0,0.00013698,2]
[385089522,1757662238644,-455.28246669,0.00013698,2]
[385089523,1757662238654,-480.0,0.00013698,2]
[385089524,1757662238663,-480.0,0.00013698,2]
[385089525,1757662238672,-480.0,0.00013698,2]
[385089526,1757662238681,-480.0,0.00013698,2]
[385089527,1757662238690,-480.0,0.00013698,2]
[385089528,1757662238699,-480.0,0.00013698,2]
[385089529,1757662238708,-480.0,0.00013698,2]
[385089530,1757662238717,-480.0,0.00013698,2]
[385089531,1757662238726,-485.12202504,0.00013698,2]
[385089532,1757662238735,-480.0,0.00013698,2]
[385089533,1757662238743,-480.0,0.00013698,2]
[385089534,1757662238752,-480.0,0.00013698,2]
[385089535,1757662238761,-480.0,0.00013698,2]
[385089536,1757662238770,-480.0,0.00013698,2]
[385089537,1757662238778,-612.29351733,0.00013698,2]
[385089538,1757662238787,-480.0,0.00013698,2]
[385089539,1757662238796,-480.0,0.00013698,2]
[385089540,1757662238805,-480.0,0.00013698,2]
[385089541,1757662238947,-480.0,0.00013698,2]
[385089542,1757662238957,-480.0,0.00013698,2]
[385089544,1757662238966,-480.0,0.00013698,2]
[385089545,1757662238975,-489.24202668,0.00013698,2]
[385089546,1757662238984,-480.0,0.00013698,2]
[385089547,1757662238993,-480.0,0.00013698,2]
[385089548,1757662239002,-480.0,0.00013698,2]
[385089549,1757662239013,-480.0,0.00013698,2]
[385089550,1757662239026,-480.0,0.00013698,2]
[385089551,1757662239035,-480.0,0.00013698,2]
[385089552,1757662239045,-480.0,0.00013698,2]
[385089553,1757662239054,-497.98681952,0.00013698,2]
[385089554,1757662239063,-1073.43,0.00013698,2]
[385089555,1757662239072,-480.0,0.00013698,2]
[385089556,1757662239082,-480.0,0.00013698,2]
[385089557,1757662239091,-480.0,0.00013698,2]
[385089558,1757662239099,-480.0,0.00013698,2]
[385089559,1757662239109,-402.49211179,0.00013698,2]
[385089560,1757662239118,-480.0,0.00013698,2]
[385089561,1757662239127,-480.0,0.00013698,2]
[385089562,1757662239136,-480.0,0.00013698,2]
[385089563,1757662239146,-480.0,0.00013698,2]
[385089564,1757662239155,-481.32564248,0.00013698,2]
[385089565,1757662239164,-480.0,0.00013698,2]
[385089567,1757662239174,-480.0,0.00013698,2]
[385089568,1757662239183,-480.0,0.00013698,2]
[385089569,1757662239193,-481.74525601,0.00013698,2]
[385089570,1757662239203,-489.50062864,0.00013698,2]
[385089572,1757662239212,-480.0,0.00013698,2]
[385089573,1757662239222,-348.58897288,0.00013698,2]
[385089574,1757662239231,-480.0,0.00013698,2]
[385089575,1757662239241,-489.03312063,0.00013698,2]
[385089577,1757662239250,-480.0,0.00013698,2]
[385089579,1757662239260,-480.0,0.00013698,2]
[385089581,1757662239270,-480.0,0.00013698,2]
[385089583,1757662239279,-480.0,0.00013698,2]
[385089585,1757662239288,-480.0,0.00013698,2]
[385089587,1757662239298,-480.0,0.00013698,2]
[385089589,1757662239307,-480.0,0.00013698,2]
[385089591,1757662239317,-480.0,0.00013698,2]
[385089593,1757662239326,-480.0,0.00013698,2]
[385089595,1757662239336,-480.0,0.00013698,2]
[385089597,1757662239346,-480.0,0.00013698,2]
[385089599,1757662239356,-480.0,0.00013698,2]
[385089601,1757662239366,-480.0,0.00013698,2]
[385089603,1757662239375,-480.0,0.00013698,2]
[385089605,1757662239385,-480.0,0.00013698,2]
[385089607,1757662239394,-480.0,0.00013698,2]
[385089609,1757662239404,-483.48017426,0.00013698,2]
[385089611,1757662239413,-480.0,0.00013698,2]
[385089613,1757662239422,-480.0,0.00013698,2]
[385089615,1757662239432,-489.00371743,0.00013698,2]
[385089617,1757662239442,-480.0,0.00013698,2]
[385089619,1757662239451,-480.0,0.00013698,2]
[385089621,1757662239460,-492.54342896,0.00013698,2]
[385089623,1757662239469,-480.0,0.00013698,2]
[385089625,1757662239478,-480.0,0.00013698,2]
[385089627,1757662239487,-480.0,0.00013698,2]
[385089629,1757662239496,-480.0,0.00013698,2]
[385089631,1757662239505,-480.0,0.00013698,2]
[385089633,1757662239515,-480.0,0.00013698,2]
[385089635,1757662239524,-480.0,0.00013698,2]
[385089637,1757662239533,-530.99,0.00013698,2]
[385089639,1757662239543,-480.0,0.00013698,2]
[385089641,1757662239552,-480.0,0.00013698,2]
[385089643,1757662239561,-480.0,0.00013698,2]
[385089645,1757662239571,-480.0,0.00013698,2]
[385089647,1757662239580,-480.0,0.00013698,2]
[385089649,1757662239589,-480.0,0.00013698,2]
[385089651,1757662239599,-480.0,0.00013698,2]
[385089652,1757662239608,-480.0,0.00013698,2]
[385089654,1757662239619,-485.23116029,0.00013698,2]
[385089656,1757662239629,-480.0,0.00013698,2]
[385089658,1757662239638,-488.10743984,0.00013698,2]
[385089660,1757662239647,-483.72794287,0.00013698,2]
[385089663,1757662239657,-480.0,0.00013698,2]
[385089665,1757662239666,-480.0,0.00013698,2]
[385089666,1757662239675,-480.0,0.00013698,2]
[385089668,1757662239685,-480.0,0.00013698,2]
[385089671,1757662239694,-480.0,0.00013698,2]
[385089673,1757662239703,-480.0,0.00013698,2]
[385089675,1757662239712,-480.0,0.00013698,2]
[385089676,1757662239722,-490.86143636,0.00013698,2]
[385089678,1757662239731,-487.77906598,0.00013698,2]
[385089681,1757662239740,-480.0,0.00013698,2]
[385089683,1757662239749,-482.56581299,0.00013698,2]
[385089685,1757662239758,-480.0,0.00013698,2]
[385089687,1757662239767,-480.0,0.00013698,2]
[385089688,1757662239777,-480.0,0.00013698,2]
[385089690,1757662239786,-481.90804806,0.00013698,2]
[385089692,1757662239795,-489.20108789,0.00013698,2]
[385089694,1757662239805,-507.67493958,0.00013698,2]
[385089696,1757662239814,-480.0,0.00013698,2]
[385089698,1757662239824,-419.41663565,0.00013698,2]
[385089701,1757662239833,-480.0,0.00013698,2]
[385089703,1757662239842,-485.00265771,0.00013698,2]
[385089705,1757662239852,-480.0,0.00013698,2]
[385089707,1757662239861,-480.0,0.00013698,2]
[385089709,1757662239870,-480.0,0.00013698,2]
[385089711,1757662239879,-480.0,0.00013698,2]
[385089713,1757662239887,-480.0,0.00013698,2]
[385089715,1757662239897,-489.81829953,0.00013698,2]
[385089717,1757662239907,-482.50768519,0.00013698,2]
[385089719,1757662239916,-480.0,0.00013698,2]
[385089721,1757662239925,-487.12324655,0.00013698,2]
[385089723,1757662239935,-484.08220643,0.00013698,2]
[385089725,1757662239944,-480.0,0.00013698,2]
[385089727,1757662239953,-480.0,0.00013698,2]
[385089729,1757662239962,-480.0,0.00013698,2]
[385089731,1757662239972,-480.0,0.00013698,2]
[385089733,1757662239981,-609.752195,0.00013699,2]
[385089735,1757662239990,-480.0,0.00013707,2]
[385089737,1757662239999,-480.0,0.00013707,2]
[385089738,1757662240009,-480.0,0.00013707,2]
[385089740,1757662240018,-480.0,0.00013707,2]
[385089743,1757662240028,-480.0,0.00013707,2]
[385089744,1757662240037,-480.0,0.00013707,2]
[385089747,1757662240046,-480.0,0.00013707,2]
[385089748,1757662240060,-480.0,0.00013707,2]
[385089750,1757662240069,-480.0,0.00013707,2]
[385089753,1757662240078,-480.0,0.00013707,2]
[385089755,1757662240096,-488.80296565,0.00013707,2]
[385089758,1757662240108,-480.0,0.00013707,2]
[385089760,1757662240118,-480.0,0.00013707,2]
[385089762,1757662240128,-480.0,0.00013707,2]
[385089764,1757662240138,-480.0,0.00013707,2]
[385089766,1757662240148,-480.0,0.00013707,2]
[385089768,1757662240157,-480.0,0.00013707,2]
[385089770,1757662240167,-481.33761272,0.00013707,2]
[385089772,1757662240177,-480.0,0.00013707,2]
[385089774,1757662240187,-480.0,0.00013707,2]
[385089776,1757662240196,-480.0,0.00013707,2]
[385089778,1757662240206,-480.0,0.00013707,2]
[385089780,1757662240215,-480.0,0.00013707,2]
[385089782,1757662240225,-486.14540909,0.00013707,2]
[385089784,1757662240235,-480.0,0.00013707,2]
[385089786,1757662240244,-480.0,0.00013707,2]
[385089789,1757662240255,-480.0,0.00013707,2]
[385089791,1757662240264,-480.0,0.00013707,2]
[385089793,1757662240274,-480.0,0.00013707,2]
[385089795,1757662240283,-480.0,0.00013707,2]
[385089797,1757662240294,-483.10447544,0.00013707,2]
[385089799,1757662240303,-480.0,0.00013707,2]
[385089801,1757662240313,-482.18578193,0.00013707,2]
[385089803,1757662240323,-480.0,0.00013707,2]
[385089805,1757662240333,-480.0,0.00013707,2]
[385089807,1757662240342,-480.0,0.00013707,2]
[385089809,1757662240352,-480.0,0.00013707,2]
[385089811,1757662240361,-480.0,0.00013707,2]
[385089813,1757662240371,-480.0,0.00013707,2]
[385089815,1757662240381,-480.0,0.00013707,2]
[385089817,1757662240390,-480.0,0.00013707,2]
[385089819,1757662240400,-1000.0,0.00013707,2]
[385089821,1757662240410,-480.0,0.00013707,2]
[385089823,1757662240419,-480.0,0.00013707,2]
[385089825,1757662240429,-702.5,0.00013707,2]
[385089827,1757662240439,-702.5,0.00013707,2]
[385089829,1757662240448,-480.0,0.00013707,2]
[385089831,1757662240458,-481.53748432,0.00013707,2]
[385089833,1757662240468,-480.0,0.00013707,2]
[385089835,1757662240478,-480.0,0.00013707,2]
[385089837,1757662240487,-480.0,0.00013707,2]
[385089839,1757662240497,-480.0,0.00013707,2]
[385089841,1757662240507,-480.0,0.00013707,2]
[385089843,1757662240517,-480.0,0.00013707,2]
[385089845,1757662240527,-480.0,0.00013707,2]
[385089847,1757662240537,-480.0,0.00013707,2]
[385089849,1757662240547,-480.0,0.00013707,2]
[385089851,1757662240556,-480.0,0.00013707,2]
[385089853,1757662240566,-480.0,0.00013707,2]
[385089855,1757662240576,-480.0,0.00013707,2]
[385089857,1757662240586,-480.0,0.00013707,2]
[385089859,1757662240595,-480.0,0.00013707,2]
[385089861,1757662240606,-480.0,0.00013707,2]
[385089864,1757662240615,-480.0,0.00013707,2]
[385089866,1757662240625,-480.0,0.00013707,2]
[385089868,1757662240634,-480.0,0.00013707,2]
[385089870,1757662240643,-480.0,0.00013707,2]
[385089872,1757662240652,-480.0,0.00013707,2]
[385089874,1757662240662,-480.0,0.00013707,2]
[385089876,1757662240672,-702.5,0.00013708,2]
[385089878,1757662240681,-20717.9515614,0.0001371,2]
[385089880,1757662240691,-702.5,0.0001371,2]
[385089882,1757662240700,-702.5,0.0001371,2]
[385089884,1757662240710,-520.0,0.00013711,2]
[385089886,1757662240719,-483.64241548,0.00013711,2]
[385089888,1757662240729,-480.0,0.00013711,2]
[385089890,1757662240738,-483.96226077,0.00013711,2]
[385089892,1757662240749,-480.0,0.00013711,2]
[385089894,1757662240759,-480.0,0.00013711,2]
[385089896,1757662240770,-480.0,0.00013711,2]
[385089898,1757662240779,-480.0,0.00013711,2]
[385089900,1757662240789,-480.0,0.00013711,2]
[385089902,1757662240798,-480.0,0.00013711,2]
[385089904,1757662240807,-480.0,0.00013711,2]
[385089906,1757662240817,-491.61909584,0.00013711,2]
[385089908,1757662240826,-232.51069455,0.00013711,2]
[385089910,1757662240835,-480.0,0.00013711,2]
[385089912,1757662240845,-480.0,0.00013711,2]
[385089914,1757662240854,-484.84343154,0.00013711,2]
[385089916,1757662240864,-480.0,0.00013711,2]
[385089918,1757662240873,-480.0,0.00013711,2]
[385089920,1757662240882,-480.0,0.00013711,2]
[385089922,1757662240891,-201.83880755,0.00013711,2]
[385089924,1757662240901,-480.0,0.00013711,2]
[385089926,1757662240910,-480.0,0.00013711,2]
[385089928,1757662240919,-480.0,0.00013711,2]
[385089930,1757662240929,-483.18616691,0.00013711,2]
[385089932,1757662240939,-484.70727639,0.00013711,2]
[385089934,1757662240948,-484.97376516,0.00013711,2]
[385089937,1757662240957,-480.0,0.00013711,2]
[385089939,1757662240966,-480.0,0.00013711,2]
[385089941,1757662240975,-483.47898412,0.00013711,2]
[385089942,1757662240984,-480.0,0.00013711,2]
[385089945,1757662240994,-480.0,0.00013711,2]
[385089947,1757662241003,-482.8578257,0.00013711,2]
[385089949,1757662241013,-480.0,0.00013711,2]
[385089951,1757662241022,-480.0,0.00013711,2]
[385089953,1757662241033,-402.7142657,0.00013711,2]
[385089955,1757662241045,-480.0,0.00013711,2]
[385089957,1757662241055,-480.0,0.00013711,2]
[385089959,1757662241064,-480.0,0.00013711,2]
[385089961,1757662241075,-480.0,0.00013711,2]
[385089963,1757662241086,-480.0,0.00013711,2]
[385089965,1757662241095,-491.68037537,0.00013711,2]
[385089967,1757662241104,-480.0,0.00013711,2]
[385089969,1757662241115,-480.0,0.00013711,2]
[385089971,1757662241124,-480.0,0.00013711,2]
[385089973,1757662241134,-484.24602464,0.00013711,2]
[385089975,1757662241143,-240.50131448,0.00013711,2]
[385089977,1757662241152,-480.0,0.00013711,2]
[385089979,1757662241161,-396.11649269,0.00013711,2]
[385089981,1757662241171,-480.0,0.00013711,2]
[385089983,1757662241180,-480.0,0.00013711,2]
[385089985,1757662241190,-480.0,0.00013711,2]
[385089987,1757662241199,-480.0,0.00013711,2]
[385089989,1757662241207,-480.0,0.00013711,2]
[385089991,1757662241217,-480.0,0.00013711,2]
[385089993,1757662241227,-481.31494929,0.00013711,2]
[385089995,1757662241236,-480.0,0.00013711,2]
[385089997,1757662241245,-626.912,0.00013711,2]
[385089999,1757662241255,-480.0,0.00013711,2]
[385090001,1757662241264,-481.76364217,0.00013711,2]
[385090003,1757662241274,-480.0,0.00013711,2]
[385090005,1757662241283,-480.0,0.00013711,2]
[385090007,1757662241293,-480.0,0.00013711,2]
[385090009,1757662241303,-480.0,0.00013711,2]
[385090011,1757662241312,-480.0,0.00013711,2]
[385090013,1757662241322,-480.0,0.00013711,2]
[385090015,1757662241332,-480.0,0.00013711,2]
[385090017,1757662241342,-480.0,0.00013711,2]
[385090019,1757662241351,-480.0,0.00013711,2]
[385090021,1757662241361,-436.18133661,0.00013711,2]
[385090023,1757662241370,-480.0,0.00013711,2]
[385090025,1757662241379,-487.01326893,0.00013711,2]
[385090027,1757662241389,-480.0,0.00013711,2]
[385090029,1757662241398,-480.0,0.00013711,2]
[385090031,1757662241407,-480.0,0.00013711,2]
[385090034,1757662241417,-480.0,0.00013711,2]
[385090036,1757662241426,-480.0,0.00013711,2]
[385090037,1757662241436,-480.0,0.00013711,2]
[385090039,1757662241445,-480.0,0.00013711,2]
[385090042,1757662241455,-480.0,0.00013711,2]
[385090044,1757662241464,-483.32335443,0.00013711,2]
[385090045,1757662241473,-480.0,0.00013711,2]
[385090048,1757662241483,-480.0,0.00013711,2]
[385090050,1757662241492,-480.0,0.00013711,2]
[385090052,1757662241503,-480.0,0.00013711,2]
[385090054,1757662241513,-480.0,0.00013711,2]
[385090056,1757662241523,-480.0,0.00013711,2]
[385090058,1757662241532,-480.0,0.00013711,2]
[385090060,1757662241542,-238.38978978,0.00013711,2]
[385090062,1757662241551,-480.0,0.00013711,2]
[385090064,1757662241560,-480.0,0.00013711,2]
[385090066,1757662241570,-480.0,0.00013711,2]
[385090068,1757662241580,-480.0,0.00013711,2]
[385090070,1757662241589,-480.0,0.00013711,2]
[385090072,1757662241598,-480.0,0.00013711,2]
[385090074,1757662241609,-480.0,0.00013711,2]
[385090076,1757662241619,-480.0,0.00013711,2]
[385090078,1757662241628,-480.0,0.00013711,2]
[385090080,1757662241637,-480.0,0.00013711,2]
[385090082,1757662241647,-480.0,0.00013711,2]
[385090084,1757662241656,-480.0,0.00013711,2]
[385090085,1757662241665,-480.0,0.00013711,2]
[385090087,1757662241675,-480.0,0.00013711,2]
[385090090,1757662241684,-480.0,0.00013711,2]
[385090092,1757662241693,-481.86093502,0.00013711,2]
[385090094,1757662241703,-480.0,0.00013711,2]
[385090095,1757662241712,-482.82757776,0.00013711,2]
[385090097,1757662241721,-483.30718389,0.00013711,2]
[385090100,1757662241731,-480.0,0.00013711,2]
[385090102,1757662241740,-480.00000001,0.00013711,2]
[385090103,1757662241749,-480.0,0.00013711,2]
[385090105,1757662241758,-480.0,0.00013711,2]
[385090107,1757662241767,-481.87371809,0.00013711,2]
[385090109,1757662241776,-480.0,0.00013711,2]
[385090111,1757662241786,-480.0,0.00013711,2]
[385090113,1757662241795,-480.0,0.00013711,2]
[385090115,1757662241804,-481.54858697,0.00013711,2]
[385090118,1757662241813,-265.60688158,0.00013711,2]
[385090119,1757662241823,-481.44405554,0.00013711,2]
[385090122,1757662241832,-480.0,0.00013711,2]
[385090123,1757662241841,-480.0,0.00013711,2]